Cogmind - Beta 16 @@@ ROGUE MODE // 2025.10.28 @ 00:15:49 Player: Mxykikker Result: Destroyed by G-47 Trooper with Particle Gun Performance ------------- Evolutions (2) 1000 Regions Visited (6) 1200 Robots Destroyed (86) 430 Value Destroyed (3678) 3678 Prototype IDs (6) 120 Alien Tech Used (0) 0 Bonus (981) 981 TOTAL SCORE: 7409 Bonus ------- High Alert Combat Kills 225 Follower Combat Kills 56 Entered Garrisons 200 Used RIF Installer 500 Cogmind --------- Core Integrity 0/550 Matter 259/300 Energy 135/275 System Corruption 5% Temperature Warning (357) Movement Treading (246) Ox1 Location -8/Storage Parts ------- > --- POWER (1) -------- Deuterium Engine > --- PROPULSION (3) --- Light Treads Armored Treads Armored Treads > --- UTILITY (5) ------ Improved Cooling System High-capacity Storage Unit Hardened Heavy Armor Plating Hacking Suite > --- WEAPON (2) ------- Improved Spread Laser Improved Spread Laser > --- INVENTORY (20) --- Subdweller Power Source Deuterium Engine Light Nuclear Core Hardened Heavy Armor Plating Hardened Heavy Armor Plating Relay Coupler [Grunt] (22) Relay Coupler [Brawler] (21) Relay Coupler [Duelist] (31) Relay Coupler [Sentry] (17) Relay Coupler [Hunter] (17) Relay Coupler [Hunter] (13) Relay Coupler [Behemoth] (10) Heavy Laser Faulty Improved Spread Laser Beamcaster Hammer Peak State ------------ > --- POWER ------------ Deuterium Engine > --- PROPULSION ------- Light Treads Armored Treads Armored Treads > --- UTILITY ---------- Improved Cooling System High-capacity Storage Unit Hardened Heavy Armor Plating Hacking Suite > --- WEAPON ----------- Improved Spread Laser Improved Spread Laser > --- INVENTORY -------- Subdweller Power Source Deuterium Engine Light Nuclear Core Light Treads Hardened Heavy Armor Plating Hardened Heavy Armor Plating Relay Coupler [Grunt] Relay Coupler [Brawler] Relay Coupler [Duelist] Relay Coupler [Sentry] Relay Coupler [Hunter] Relay Coupler [Hunter] Relay Coupler [Behemoth] Heavy Laser Improved Spread Laser Beamcaster Hammer [Rating: 42] Favorites ----------- Power Ion Engine Engine Ion Engine Power Core Light Nuclear Core Propulsion Light Treads Treads Light Treads Leg Aluminum Leg Wheel Wheel Utility High-capacity Storage Unit Device Improved Cooling System Storage High-capacity Storage Unit Hackware Hacking Suite Protection Hardened Heavy Armor Plating Weapon Improved Spread Laser Energy Gun Improved Spread Laser Energy Cannon Subdweller Beam Cannon Ballistic Gun Subdweller Machine Gun Impact Weapon Hammer Special Melee Weapon Improved Datajack Build | -11 -10 -10 -8 -8 -8 -8 ------- Run | Yrd Mat Sub Mat Gar Mat Sto Slots Evolved 4 | . . . 4 . . . Power . | . . . . . . . Propulsion 1 | . . . 1 . . . Utility 3 | . . . 3 . . . Weapon . | . . . . . . . Parts Attached 75 | 6 3 12 25 23 3 3 Power 11 | 1 . 3 4 2 1 . Engine 10 | 1 . 3 4 1 1 . Core 1 | . . . . 1 . . Reactor . | . . . . . . . Propulsion 23 | 2 . 3 6 9 1 2 Treads 8 | 2 . . . 3 1 2 Leg 6 | . . . . 6 . . Wheel 9 | . . 3 6 . . . Hover . | . . . . . . . Flight . | . . . . . . . Utility 22 | 1 2 1 8 8 1 1 Device 2 | . . . 1 . 1 . Storage 3 | 1 2 . . . . . Processor . | . . . . . . . Hackware 8 | . . . 3 5 . . Protection 9 | . . 1 4 3 . 1 Artifact . | . . . . . . . Weapon 19 | 2 1 5 7 4 . . Energy Gun 10 | 1 . . 7 2 . . Energy Cannon 2 | . 1 1 . . . . Ballistic Gun 5 | 1 . 4 . . . . Ballistic Cannon . | . . . . . . . Launcher . | . . . . . . . Special Weapon . | . . . . . . . Impact Weapon 1 | . . . . 1 . . Slashing Weapon . | . . . . . . . Piercing Weapon . | . . . . . . . Special Melee Weapon 1 | . . . . 1 . . Unidentified Prototypes 3 | . . . 3 . . . Parts Lost 25 | . . 6 5 13 . 1 Power 2 | . . . . 2 . . Propulsion 12 | . . 2 3 6 . 1 Utility 3 | . . 1 . 2 . . Weapon 8 | . . 3 2 3 . . Highest Loss Streak 3 | . . 2 2 3 . 1 To Critical Strikes 1 | . . 1 . . . . Average Backups 11 | . 3 6 11 15 16 16 Power 1 | . . . 1 2 2 3 Propulsion . | . 2 1 . . . . Utility 5 | . . 1 5 7 10 9 Weapon 3 | . 1 2 4 4 4 4 Tool/Special . | . . . . . . . Unused Backups 13 | . . 2 . 1 . 10 Power . | . . . . . . . Propulsion . | . . . . . . . Utility 8 | . . . . . . 8 Weapon 5 | . . 2 . 1 . 2 Tool/Special . | . . . . . . . Average Slot Usage (%) 85 | . 87 80 95 82 90 87 Engine 7 | . 14 14 8 1 3 9 Core 1 | . . . . 4 6 . Treads 12 | . 28 15 . 7 27 26 Leg 4 | . . . . 11 . . Wheel 7 | . . 11 25 2 . . Device 1 | . . . 2 . 3 9 Storage 9 | . 16 8 8 9 9 9 Hackware 14 | . . . 25 21 14 9 Protection 4 | . . 2 6 5 9 9 Energy Gun 9 | . 8 . 16 10 9 13 Energy Cannon 3 | . 5 14 . . . . Ballistic Gun 4 | . 14 12 . . . . Impact Weapon 2 | . . . . 4 9 3 Special Melee Weapon 1 | . . . . 3 . . Peak Build Rating 42 | 6 7 13 39 39 38 42 Average Rating 24 | 5 6 9 31 30 36 39 On Entrance 19 | . 6 7 9 39 36 38 Avg Prop Armor Cover (%) 6 | . . . . 6 . . Naked Turns . | . . . . . . . Heaviest Build 79 | 14 52 59 65 71 77 79 Greatest Support 60 | 40 40 40 38 60 60 60 Greatest Overweight (x) 18 | . 1 2 4 18 1 1 Average Overweight (x) 1 | . . . 1 1 1 1 Largest Inventory Capacity 20 | 8 20 20 20 20 20 20 Average Capacity 18 | 7 15 13 19 20 20 20 Most Carried 20 | 3 4 11 20 20 20 20 Average Carried 13 | . 3 7 14 18 19 18 Final Capacity 20 | 8 20 5 20 20 20 20 Final Carried 20 | 3 4 5 20 20 20 18 Class Distribution -------------------- 36% | Mutant 28% | Scavenger-Mutant 24% | Hacker-Mutant 6% | Bothacker-Mutant 3% | Subdweller-Mutant Dominant Class ---------------- Mutant | -10/Materials Mutant | -10/Subcaves Hacker-Mutant | -8/Materials Scavenger-Mutant | -8/Garrison Scavenger-Mutant | -8/Materials Mutant | -8/Storage Resources | -11 -10 -10 -8 -8 -8 -8 ----------- Run | Yrd Mat Sub Mat Gar Mat Sto Matter Collected 1450 | 281 175 181 337 368 . 108 Remotely . | . . . . . . . Salvage Created 2987 | 147 131 535 1090 513 135 436 Parts 143 | 7 10 31 35 32 6 22 Haulers Intercepted 4 | . 1 . 2 . . 1 Recyclers Shooed 3 | . . . 3 . . . Parts Field Recycled . | . . . . . . . Retrieved Matter . | . . . . . . . Parts Self-Destructed 4 | . . 4 . . . . Prevented . | . . . . . . . Parts Restored . | . . . . . . . Kills | -11 -10 -10 -8 -8 -8 -8 ------- Run | Yrd Mat Sub Mat Gar Mat Sto Combat Hostiles Destroyed 70 | . 5 12 21 17 3 12 Guns 57 | . 4 2 21 15 3 12 Cannons 10 | . 1 9 . . . . AOE 1 | . . . . 1 . . Classes Destroyed 15 | 2 2 2 5 2 1 1 Worker 2 | . . . 1 . 1 . Tunneler 4 | 3 . . 1 . . . Hauler 4 | . 1 . 2 . . 1 Recycler 3 | 1 . . 2 . . . Operator 1 | . . . 1 . . . Watcher 2 | . . . 2 . . . Swarmer 17 | . 5 . 3 6 . 3 Grunt 20 | . . . 12 5 1 2 Brawler 1 | . . . . 1 . . Duelist 1 | . . . . . 1 . Sentry 17 | . . . 6 4 1 6 Hunter 1 | . . . . . . 1 Programmer 1 | . . . . 1 . . Artisan 1 | . . 1 . . . . Subdweller 12 | . . 12 . . . . Best Kill Streak 5 | 2 3 2 3 3 2 5 Combat Bots Only 5 | . 3 2 3 3 2 5 Max Kills in Single Turn 2 | 1 2 1 2 2 1 1 Gunslinging 1 | . 1 . 1 1 . . Exploded 1 | . . . . 1 . . Melee . | . . . . . . . Uniques/NPCs Destroyed . | . . . . . . . Combat | -11 -10 -10 -8 -8 -8 -8 -------- Run | Yrd Mat Sub Mat Gar Mat Sto Hostile Shots Fired 467 | . 40 51 88 196 9 83 Missed 120 | . 12 8 29 52 1 18 Hits 347 | . 28 43 59 144 8 65 Melee 3 | . . . . 2 1 . Projectile 344 | . 28 43 59 142 7 65 Critical Strikes 13 | . . 1 3 5 . 4 Damage Taken 5006 | . 239 1062 845 1909 143 808 Core 771 | . 35 173 177 242 33 111 Absorbed by Shields . | . . . . . . . Regen/Repaired (Parts) 107 | . . . 20 . . 87 Core Remaining (%) 58 | 100 . 16 . . . . Volleys Fired 277 | 7 15 68 68 75 11 33 Largest 2 | 2 2 2 2 2 1 2 Hottest 150 | 60 80 110 150 150 75 150 Shots Fired 397 | 14 30 88 115 93 11 46 Gun 326 | 14 26 22 114 93 11 46 Cannon 71 | . 4 66 1 . . . Launcher . | . . . . . . . Special . | . . . . . . . Kinetic 68 | 7 15 22 12 12 . . Thermal 311 | . 4 66 103 81 11 46 Explosive . | . . . . . . . Electromagnetic 18 | 7 11 . . . . . Robot Hit Streak 16 | 4 3 13 13 9 6 16 Robot Miss Streak 13 | 2 4 5 7 13 7 5 Penetration Max . | . . . . . . . Secondary Targets 4 | . 1 . 1 1 . 1 Max Gunslinging Chain 1 | . 1 . 1 1 . 1 Shots Hit Robots 302 | 8 13 56 98 73 11 43 Core Hits 242 | 5 7 14 103 41 16 56 Critical Kills 1 | . . 1 . . . . Critical Parts Destroyed 2 | . . . . 1 1 . Critical Strikes 6 | . . 1 1 3 1 . Burn 3 | . . . 1 2 . . Meltdown 1 | . . 1 . . . . Smash 2 | . . . . 1 1 . Melee Attacks 37 | . . . . 36 1 . Impact 26 | . . . . 25 1 . Slashing . | . . . . . . . Piercing . | . . . . . . . Sneak Attacks 1 | . . . . . 1 . Combat Hostiles . | . . . . . . . Follow-up Attacks . | . . . . . . . Damage Inflicted 6103 | 109 187 1329 2018 1215 260 985 Guns 4724 | 109 169 236 2018 1004 204 984 Cannons 1111 | . 18 1093 . . . . Explosions . | . . . . . . . Melee 267 | . . . . 211 56 . Ramming 1 | . . . . . . 1 Kinetic 849 | 42 125 236 258 188 . . Thermal 4875 | . 18 1093 1760 816 204 984 Explosive . | . . . . . . . Electromagnetic 111 | 67 44 . . . . . Impact 267 | . . . . 211 56 . Slashing . | . . . . . . . Piercing . | . . . . . . . Highest Corruption 5 | . . . . 5 5 5 Average Corruption 5 | . . . . 5 5 5 Corruption Purged . | . . . . . . . Corruption Blocked . | . . . . . . . Effects 47 | . . . . 29 7 11 Message Errors 15 | . . . . 11 1 3 Matter Fused 9 | . . . . 5 1 3 Heat Flow Errors 3 | . . . . 2 1 . Energy Discharges 9 | . . . . 5 2 2 Parts Rejected 2 | . . . . . . 2 Data Loss (minor) 3 | . . . . 1 2 . Data Loss (major) 3 | . . . . 2 . 1 Misfires 2 | . . . . 2 . . Alerts 1 | . . . . 1 . . Overload Shots . | . . . . . . . Overflow Damage 110 | . . . . 54 56 . Projectiles . | . . . . . . . Explosions . | . . . . . . . Melee 110 | . . . . 54 56 . Knockbacks . | . . . . . . . Impact . | . . . . . . . Kinetic . | . . . . . . . Secondary . | . . . . . . . Self-Inflicted Damage . | . . . . . . . Shots . | . . . . . . . Rammed 1 | . . . . . . 1 Targets Rammed 1 | . . . . . . 1 Kicked . | . . . . . . . Crushed . | . . . . . . . Highest Temperature 435 | . 36 75 420 265 435 348 Average Temperature 99 | . 20 29 95 80 231 139 Received Heat Transfer 1698 | . . 204 396 810 63 225 Effects 14 | . . . 6 1 4 3 Shutdowns 5 | . . . 2 . 2 1 Energy Bleed 2 | . . . . . 1 1 Interference 2 | . . . . 1 1 . Damage (minor) 1 | . . . . . . 1 Damage (major) 4 | . . . 4 . . . Siege Activations . | . . . . . . . Martial Activations . | . . . . . . . Shielding Activations . | . . . . . . . Robots Disrupted . | . . . . . . . Combat Hostiles . | . . . . . . . Robots Corrupted 2 | . . . . 1 1 . Combat Hostiles 1 | . . . . 1 . . Parts Fried . | . . . . . . . Impact Corruptions 4 | . . . . 2 2 . Robots Melted 1 | . . 1 . . . . Combat Hostiles 1 | . . 1 . . . . Parts Melted 8 | . . 3 3 2 . . Heat Transferred 6041 | . 37 1517 2241 1246 175 825 Parts Sabotaged . | . . . . . . . Parts Stolen . | . . . . . . . Parts Stripped . | . . . . . . . Power Chain Reactions . | . . . . . . . Alert | -11 -10 -10 -8 -8 -8 -8 ------- Run | Yrd Mat Sub Mat Gar Mat Sto Maximum Alert Level 4 | . . . 1 4 3 2 Low Security (%) 35 | 100 100 . 80 2 . . Level 1 30 | . . . 19 41 . 73 Level 2 13 | . . . . 22 13 26 Level 3 13 | . . . . 19 86 . Level 4 6 | . . . . 13 . . Level 5 . | . . . . . . . High Security . | . . . . . . . Max Security . | . . . . . . . Peak Influence 1506 | 10 72 . 249 1506 758 489 Initial 733 | . . . . 137 733 290 Average 385 | 1 16 . 91 614 722 360 Influence Increases 3003 | 20 164 . 644 1659 85 431 Destroy 0b10 Robot/C 1240 | . 100 . 420 420 60 240 Destroy 0b10 Robot/NC 80 | 20 5 . 45 . 5 5 Destroy Leader 282 | . 22 . 118 30 20 92 Allied During Kill 9 | . . . . 9 . . Successful Hack 67 | . 7 . 15 26 . 19 Select Force Hacks 60 | . 30 . . . . 30 Anti-Garrison Action 1000 | . . . . 1000 . . Destroy Structure 85 | . . . 1 84 . . Lose Combat Pursuer 180 | . . . 45 90 . 45 Influence Decreases 2514 | 20 164 . 433 364 903 630 Entered New Map 1245 | . . . . 74 773 398 Time Decay 929 | 20 164 . 393 . 130 222 Lost Part 180 | . . . 40 130 . 10 Lost Ally 160 | . . . . 160 . . Squads Dispatched 10 | . 3 . 3 . . 4 Investigation 5 | . 2 . 2 . . 1 Extermination . | . . . . . . . Reinforcement 4 | . 1 . 1 . . 2 Assault . | . . . . . . . Garrison 1 | . . . . . . 1 Intercept . | . . . . . . . Searches Triggered . | . . . . . . . Construction Impeded . | . . . . . . . Haulers Reinforced . | . . . . . . . Active Scanning Responses . | . . . . . . . Cargo Convoy Interrupts . | . . . . . . . Stealth | -11 -10 -10 -8 -8 -8 -8 --------- Run | Yrd Mat Sub Mat Gar Mat Sto Distress Signals 3 | . . . 2 . . 1 Communications Jammed . | . . . . . . . Distress Signals . | . . . . . . . Times Spotted 117 | . 6 14 35 37 4 21 Peak Tracking Total 6 | . 3 2 4 6 2 6 Tactical Retreats 10 | . . . 3 6 . 1 Traps | -11 -10 -10 -8 -8 -8 -8 ------- Run | Yrd Mat Sub Mat Gar Mat Sto Traps Triggered 5 | . . 1 1 1 . 2 Indirectly . | . . . . . . . Trap Hack Attempts 16 | . . . . 16 . . Triggered . | . . . . . . . Disarmed . | . . . . . . . Reprogrammed 1 | . . . . 1 . . Reused 1 | . . 1 . . . . Traps Extracted . | . . . . . . . Installed 1 | . . 1 . . . . Triggered . | . . . . . . . Most Traps Carried 1 | . . 1 . . . . Machines | -11 -10 -10 -8 -8 -8 -8 ---------- Run | Yrd Mat Sub Mat Gar Mat Sto Machines Disabled 6 | . . . . 6 . . Max in Single Turn 2 | . . . . 2 . . Garrison Relay 4 | . . . . 4 . . Phase Generator 1 | . . . . 1 . . Machines Repaired . | . . . . . . . Machines Dismantled . | . . . . . . . Machines Sabotaged . | . . . . . . . Overloaded Fab Kills . | . . . . . . . Hacking | -11 -10 -10 -8 -8 -8 -8 --------- Run | Yrd Mat Sub Mat Gar Mat Sto Machines Accessed 23 | . 2 . 12 4 1 4 Terminals 15 | . 1 . 7 4 1 2 Fabricators . | . . . . . . . Repair Stations 2 | . . . 1 . . 1 Recycling Units 3 | . 1 . 1 . . 1 Scanalyzers 2 | . . . 2 . . . Garrison Access 1 | . . . 1 . . . Total Hacks 71 | . 5 . 46 8 1 11 Successful 52 | . 3 . 36 3 . 10 Failed 18 | . 2 . 9 5 1 1 Catastrophic 3 | . . . . 2 1 . Database Lockouts 1 | . . . 1 . . . Manual 24 | . 3 . 14 1 1 5 Terminals 43 | . 4 . 23 8 1 7 Fabricators . | . . . . . . . Repair Stations 4 | . . . 2 . . 2 Recycling Units 6 | . 1 . 3 . . 2 Scanalyzers 17 | . . . 17 . . . Garrison Access 1 | . . . 1 . . . Terminal Hacks 20 | . 2 . 11 3 . 4 Part Schematic 4 | . 1 . 2 . . 1 Prototype ID Bank 2 | . . . 2 . . . Open Door 1 | . . . . 1 . . Branch Access Points 2 | . . . 1 . . 1 Emergency Access Points 1 | . . . . 1 . . Repair Station Index 1 | . . . 1 . . . Hauler Manifests 4 | . 1 . 2 . . 1 Registered Components 2 | . . . 1 . . 1 Zone Layout 2 | . . . 2 . . . Security Stations 1 | . . . . 1 . . Fabricator Hacks . | . . . . . . . Repair Station Hacks 4 | . . . 2 . . 2 Scan Component 2 | . . . 1 . . 1 Repair 2 | . . . 1 . . 1 Recycling Unit Hacks 3 | . . . 2 . . 1 Report Inventory 2 | . . . 1 . . 1 Retrieve Components 1 | . . . 1 . . . Scanalyzer 16 | . . . 16 . . . Insert Component 8 | . . . 8 . . . Analyze 8 | . . . 8 . . . Garrison Access Hacks 1 | . . . 1 . . . Unlock Access 1 | . . . 1 . . . Unauthorized Hacks 8 | . 1 . 4 . . 3 Terminals 6 | . . . 4 . . 2 Assimilate 1 | . . . 1 . . . Botnet 5 | . . . 3 . . 2 Fabricators . | . . . . . . . Repair Stations . | . . . . . . . Recycling Units 2 | . 1 . . . . 1 Tunnel 2 | . 1 . . . . 1 Scanalyzers . | . . . . . . . Garrison Access . | . . . . . . . Data Cores Recovered 1 | . . . 1 . . . Used . | . . . . . . . Hacking Detections 19 | . . . 11 4 1 3 Full Trace Events 3 | . . . 2 1 . . Feedback Events . | . . . . . . . Feedback Blocked . | . . . . . . . Robot Schematics Acquired . | . . . . . . . Robots Built . | . . . . . . . Authchips . | . . . . . . . Time . | . . . . . . . Total Robot Build Rating . | . . . . . . . Part Schematics Acquired 12 | . 1 . 10 . . 1 Parts Built . | . . . . . . . Authchips . | . . . . . . . Time . | . . . . . . . Total Part Build Rating . | . . . . . . . Part Studies Acquired . | . . . . . . . Parts Repaired 2 | . . . 1 . . 1 Time 158 | . . . 88 . . 70 Parts Recycled . | . . . . . . . Recycled Matter . | . . . . . . . Retrieved Matter . | . . . . . . . Retrieved Components 9 | . . . 9 . . . Parts Scanalyzed 8 | . . . 8 . . . Part Schematics Acquired 8 | . . . 8 . . . Parts Damaged 1 | . . . 1 . . . Bothacking | -11 -10 -10 -8 -8 -8 -8 ------------ Run | Yrd Mat Sub Mat Gar Mat Sto Used RIF Installer 1 | . . . . 1 . . Robots Hacked 7 | . . . . 7 . . Non-combat . | . . . . . . . Combat 7 | . . . . 7 . . Robot Hacks Applied 7 | . . . . 7 . . amplify_resonance 1 | . . . . 1 . . formatsys_high 6 | . . . . 6 . . Relay Couplers Released 21 | . . . . 21 . . Machine Destruction 17 | . . . . 17 . . Programmers 4 | . . . . 4 . . Attached 5 | . . . . 5 . . Fabnet Peak Effective % . | . . . . . . . Robots Rewired 2 | . . . . 2 . . Allies Hacked . | . . . . . . . Hacks Repelled . | . . . . . . . Allies | -11 -10 -10 -8 -8 -8 -8 -------- Run | Yrd Mat Sub Mat Gar Mat Sto Total Allies 8 | . . . . 8 . . Largest Group 4 | . . . . 4 . . Highest-Rated Group 70 | . . . . 70 . . Highest-Rated Ally 39 | . . . . 39 . . Total Orders . | . . . . . . . Ally Attacks 31 | . . . . 31 . . Total Damage 388 | . . . . 388 . . Kills 4 | . . . . 4 . . Allies Corrupted . | . . . . . . . Allies Melted . | . . . . . . . Intel | -11 -10 -10 -8 -8 -8 -8 ------- Run | Yrd Mat Sub Mat Gar Mat Sto Active Infowar (turns) . | . . . . . . . Robot Analysis Total . | . . . . . . . Derelict Logs Recovered 1 | . . 1 . . . . Drone Launches . | . . . . . . . Drone Recoveries . | . . . . . . . Exploration | -11 -10 -10 -8 -8 -8 -8 ------------- Run | Yrd Mat Sub Mat Gar Mat Sto Turns Passed 6843 | 143 766 1261 1227 2702 267 477 Spaces Moved 3098 | 71 249 686 816 1051 99 126 Core 6 | 4 . . . 2 . . Treads 1169 | 67 249 246 . 382 99 126 Legs 504 | . . . . 504 . . Wheels 1419 | . . 440 816 163 . . Hover . | . . . . . . . Flight . | . . . . . . . Fastest Speed 50 | 50 160 80 95 98 240 243 Average Speed 168 | 153 215 143 99 212 241 244 Slowest Speed 950 | 160 240 240 150 950 243 246 Overloaded Moves . | . . . . . . . Propulsion Burnouts . | . . . . . . . Robots Hopped . | . . . . . . . Potential Cave-ins . | . . . . . . . Cave-ins Triggered . | . . . . . . . Exploration Rate (%) 37 | 4 34 53 53 77 12 28 Regions Visited 6 Branch Regions 2 Pre-discovered Areas 2 | . 1 . . . . 1 Known Exits Taken 2 | . . . 1 . 1 . Unknown Exits Taken 3 | 1 1 1 . . . . Scrap Searched 3 | . . 3 . . . . Spaces Dug 1 | . . . . 1 . . Terrain Destroyed 55 | . . 2 . 53 . . Melee 1 | . . . . 1 . . Projectile 2 | . . 2 . . . . AOE 52 | . . . . 52 . . Terrain Rammed . | . . . . . . . Walls Destroyed . | . . . . . . . Machines Disabled . | . . . . . . . Actions | -11 -10 -10 -8 -8 -8 -8 --------- Run | Yrd Mat Sub Mat Gar Mat Sto Total 4272 | 88 449 879 1112 1385 115 244 Wait 622 | . 180 82 161 127 . 72 Move 3091 | 70 248 685 815 1049 98 126 Hop . | . . . . . . . Pick Up 49 | 4 1 12 16 16 . . Fast Attach 39 | 6 2 3 11 10 1 6 Attach 29 | . . 4 9 14 1 1 Detach 21 | . 1 3 6 10 1 . Swap 36 | . 1 6 14 11 1 3 Drop 40 | 1 1 12 12 11 1 2 Fire 277 | 7 15 68 68 75 11 33 Melee 37 | . . . . 36 1 . Ram . | . . . . . . . Kick . | . . . . . . . Crush 1 | . . . . . . 1 Escape Stasis 5 | . . . . 5 . . Rewire 5 | . . . . 5 . . Trap 17 | . . 1 . 16 . . Miscellaneous 3 | . . 3 . . . . Route ------- -11/Scrapyard -10/Materials (discovered 2 exits: [*Min] / [*Sub]) -10/Subcaves (discovered 3 exits: *Mat x2 / [*Scr]) -8/Materials (discovered 5 exits: [*Fac x2] / *Sto x2 / Gar) -8/Garrison (discovered 2 exits: *Mat x2) -8/Materials -8/Storage (discovered 1 exit: Rec) History --------- Turn | Location | Event 27 | -11/Scrapyard | Discovered new exit (range 16) 144 | -11/Scrapyard | Entered Materials 145 | -10/Materials | Met a group of wandering Federalists 316 | -10/Materials | Build established: Mutant 397 | -10/Materials | Discovered new exit (range 16) 875 | -10/Materials | Discovered new exit (range 12) 910 | -10/Materials | Entered Subcaves 911 | -10/Subcaves | Continued accompanying wandering Federalists (4) 953 | -10/Subcaves | Disturbed a concealed Subdweller 1065 | -10/Subcaves | A swath of the cavern ceiling suddenly collapsed 1193 | -10/Subcaves | Learned Materials emergency access door positions 1607 | -10/Subcaves | A swath of the cavern ceiling suddenly collapsed 1718 | -10/Subcaves | Discovered new exit (range 15) 1854 | -10/Subcaves | Shifting Twisted Machinery released Battle Cannon 1859 | -10/Subcaves | Ambushed by Subdwellers from Twisted Machinery 1880 | -10/Subcaves | Core integrity fell below 50% 2045 | -10/Subcaves | Discovered new exit (range 14) 2048 | -10/Subcaves | Ambushed by Subdwellers from Twisted Machinery 2071 | -10/Subcaves | Core integrity fell below 20% 2162 | -10/Subcaves | Shifting Twisted Machinery released Mak. Leg 2171 | -10/Subcaves | Entered Materials 2171 | -8/Materials | Evolved 4 slots: Propulsion x1, Utility x3 2179 | -8/Materials | Discovered new exit (range 13) 2200 | -8/Materials | Discovered new exit (range 16) 2333 | -8/Materials | Identified exit to Storage 2513 | -8/Materials | Discovered new exit (range 10) 2622 | -8/Materials | Build established: Hacker-Mutant 3200 | -8/Materials | Repaired Broken Imp. Spread Laser 3209 | -8/Materials | Discovered new exit (range 10) 3228 | -8/Materials | Central database locked down 3363 | -8/Materials | Identified exit to Garrison 3398 | -8/Materials | Entered Garrison 3524 | -8/Garrison | Triggered checkpoint 3621 | -8/Garrison | Lost 3 parts (2n1w) 3697 | -8/Garrison | Installed Relay Interface Framework 3868 | -8/Garrison | Garrison Relay disabled 3980 | -8/Garrison | Triggered checkpoint 3989 | -8/Garrison | Triggered checkpoint 4006 | -8/Garrison | Core integrity fell below 50% 4272 | -8/Garrison | Build established: Scavenger-Mutant 4342 | -8/Garrison | Triggered checkpoint 4385 | -8/Garrison | Garrison Relay disabled 4501 | -8/Garrison | Discovered new exit (range 9) 4622 | -8/Garrison | Triggered checkpoint 4688 | -8/Garrison | Build established: Bothacker-Mutant 4826 | -8/Garrison | Triggered checkpoint 4891 | -8/Garrison | Lost 4 allies 4897 | -8/Garrison | Lost 3 parts (1n1u1w) 4998 | -8/Garrison | Learned Materials security intel 5071 | -8/Garrison | Garrison Relay disabled 5188 | -8/Garrison | Build established: Scavenger-Mutant 5280 | -8/Garrison | Triggered checkpoint 5729 | -8/Garrison | Phase Generator disabled 5767 | -8/Garrison | Garrison Relay disabled 6052 | -8/Garrison | Triggered checkpoint 6081 | -8/Garrison | Discovered new exit (range 8) 6100 | -8/Garrison | Entered Materials 6197 | -8/Materials | Core integrity fell below 20% 6340 | -8/Materials | Discovered exit to Storage (range 11) 6367 | -8/Materials | Entered Storage 6570 | -8/Storage | Build established: Mutant 6724 | -8/Storage | Repaired Imp. Spread Laser 6740 | -8/Storage | Identified exit to Recycling 6832 | -8/Storage | Garrison activated, responded to threat 6844 | -8/Storage | Destroyed by G-47 Trooper with Particle Gun Last Messages --------------- 06821_ K-01 Serf collects debris. 06823_ Y-45 Defender destroyed. 06827_ K-01 Serf collects debris. 06829_ G-47 Trooper destroyed. 06830_ W-25 Informer sends out distress signal. 06831_ Overheating: Energy bleed (-39). 06831_ K-01 Serf collects debris. 06832_ W-25 Informer calls for garrison support. 06832_ ALERT: Activating Garrison Access S001. 06833_ K-01 Serf collects debris. 06835_ R-06 Scavenger collects Lgt. Nuclear Core. 06835_ K-01 Serf collects debris. 06835_ G-47 Trooper destroyed. 06836_ 29OOMKI09I2QU>CYH QM 06838_ R-06 Scavenger collects Unknown Ballistic Gun. 06838_ K-01 Serf collects debris. 06841_ Power failure, Deuterium Engine shutdown. 06841_ R-06 Scavenger collects Heat Sink. 06842_ K-01 Serf collects debris. 06844_ Overheating: Hcp. Storage Unit damaged (-159). Map ----- +----------------------------------------------------+ | ?????????????????????????????????????????????????? | | ?????????????????????????????????????????????????? | | ?????????????????????????????????????????????????? | | ?????????????????????????????????????????????????? | | ?????????????????????????????????????????????????? | | ???????????????????????????+?????????????????????? | | ??????????????????????????? ????????????????? ???# | | ??????????????????????????? ????????????????? ?### | | ??????????????????????????? ????????????????? ?#"" | | ??????????????????????????? ????????????????? ?#"T | | ??????????????????????????? ????#+##+##?????? ?#"" | | ??????????????????????!???# #?? ????? ?### | | ??????????????????????????# #"" #???? #??# | | ??????????????????????????# #"T #???# #??# | | ??????????????????????????# #"" """ """ #???# #??# | | ??????????????????????????# #?# """ """ #???# #??# | | ??????????????????????????# #?# """ """ #???# #### | | ????????????????????????### ### #???# ## | | ????????????????????????? ## ##### ## " | | ??????????????????????????# ########+#### ## " | | ??????????????????????????# ### [%! ## " | | ??????????????????????????# m = T + | | ??????????????????????????#r### ## | | ??????????????#######+#####%#?########### ## | | ??????????????# ^w g #???????????########## | | ??????????????????###a @! #????????????????????? | | ????????????????????# k""#????????????????????? | | ????????????????????#]! =Y"#??????????????????? | | ????????????????????#] %""#?????????????????? | | ????????????????????# k #??????????????????### | | ????????????????????# u????????????????????? | | ????????????????????# [[ a #???????????????????? | | ????????????????????# [ #???????????????????? | | ????????????????????# +???????????????????? | | ????????????????????# #???????????????????? | | ????????????????????# #???????????????????? | | ????????????????????# +???????????????????? | | ????????????????????##########???????????????????? | | ?????????????????????????????????????????????????? | | ?????????????????????????????????????????????????? | | ?????????????????????????????????????????????????? | | ?????????????????????????????????????????????????? | | ?????????????????????????????????????????????????? | | ????????????????]????????????????????????????????? | | ?????????????????????????????????????????????????? | | ?????????????????????????????????????????????????? | | ?????????????????????????????????????????????????? | | ?????????????????????????????????????????????????? | | ?????????????????????????????????????????????????? | | ?????????????????????????????????????????????????? | +----------------------------------------------------+ Best States ------------- Heat Dissipation 58 Energy Generation 15 Energy Capacity 275 Matter Stores 400 Matter Capacity 400 Sight Range 16 Terrain Scan Density 10 Armor Coverage 800 Evasion (%) 44 Recoil Reduction 3 Offensive Hacking 32 Relay Coupler Types 2 Relay Coupler Value 56 Item Schematics ----------------- Cargo Storage Unit | -10/Materials | Hacked Hacking Suite | -8/Materials | Hacked System Shield | -8/Materials | Hacked Imp. Spread Laser | -8/Materials | Scanalyzed Imp. Datajack | -8/Materials | Scanalyzed Hrd. Heavy Armor Plating | -8/Materials | Scanalyzed Arm. Wheel | -8/Materials | Scanalyzed Imp. Cooling System | -8/Materials | Scanalyzed Hvy. Laser | -8/Materials | Scanalyzed Hrd. Medium Armor Plating | -8/Materials | Scanalyzed Deuterium Engine | -8/Materials | Scanalyzed Datajack | -8/Storage | Hacked Robot Schematics ------------------ None Fabricated ------------ Nothing Repaired ---------- Imp. Spread Laser | 81% | -8/Materials | Broken Imp. Spread Laser | 20% | -8/Storage Studied --------- None Alien Tech Used ----------------- None Achievements -------------- None Challenges ------------ None Game ------ Seed DeflectorWeldingLattice Manual? 0 Play Time 01:14:43 Cumulative 89.7 hours Start 2025.10.27 @ 22:56:45 End 2025.10.28 @ 00:15:49 Sessions 1 Manual Loads 0 Difficulty Rogue Special Mode None Game No. 139 Rogue 139 Adventurer 0 Explorer 0 Win Type - Total 0 Types 0/0/0/0/0/0/0/0/0/0 Lore% 28 Gallery% 32 Achievement% 25 Wizard Run 0 Options --------- Layout 0 ASCII 0 Keyboard 0 Movement Arrows Keybinds 0 Fullscreen 1 Font 18/SmallcapsGlow Map View 76x50 Zoom Use 0% Tactical HUD 1 Map Filters NONE Filters NONE Steam 1 RUN: 723ef710-ac46-48ac-adb6-6f5b6b120549